bitfinex-derivatives/quotes_BTCF0:USTF0_20251209
["timestamp","ask_amount","ask_price","bid_price","bid_amount"]
[1765320394085,0.18920839,93032.0,93031.0,0.3608]
[1765320394284,0.13115775,93032.0,93031.0,0.3608]
[1765320395492,0.18918182,93032.0,93031.0,0.3608]
[1765320395792,0.13115775,93032.0,93031.0,0.3608]
[1765320399900,0.13115775,93032.0,93031.0,0.40866]
[1765320401197,0.13115775,93032.0,93031.0,0.3608]
[1765320401398,0.1283508,93018.0,93017.0,0.09460125]
[1765320401601,0.65269935,93018.0,93017.0,0.09460125]
[1765320401900,0.65269935,93018.0,93017.0,0.04802125]
[1765320402098,0.65269935,93018.0,93017.0,0.00016125]
[1765320402295,0.65269935,93018.0,93017.0,0.09460125]
[1765320402492,0.65269935,93018.0,93017.0,0.00016125]
[1765320402698,0.65269935,93018.0,93017.0,0.00216125]
[1765320403103,0.1064939,92991.0,92987.0,0.3608]
[1765320403304,0.1064947,92984.0,92983.0,0.05871233]
[1765320403495,0.13016325,92984.0,92983.0,0.10529233]
[1765320403696,0.13016325,92984.0,92983.0,0.09444]
[1765320403994,0.13016325,92984.0,92971.0,0.00010758]
[1765320403995,0.1064961,92972.0,92971.0,0.09028758]
[1765320404202,0.63084335,92972.0,92971.0,0.09028758]
[1765320404905,0.63084335,92972.0,92971.0,0.04796758]
[1765320405201,0.63084335,92972.0,92971.0,0.09454758]
[1765320406204,0.6071761,92972.0,92971.0,0.09454758]
[1765320406511,0.6071761,92972.0,92971.0,0.09654758]
[1765320406903,0.6071761,92972.0,92971.0,0.09754758]
[1765320408705,0.48469,92988.0,92987.0,0.09444]
[1765320408908,0.39513665,92988.0,92987.0,0.09444]
[1765320409111,0.5115542,92988.0,92987.0,0.09444]
[1765320409811,0.5008,92988.0,92987.0,0.09444]
[1765320410001,0.59754,92988.0,92987.0,0.09444]
[1765320410201,0.59854,92988.0,92987.0,0.09444]
[1765320411006,0.59754,92988.0,92987.0,0.09444]
[1765320412913,0.59654,92988.0,92987.0,0.09444]
[1765320414513,0.59754,92988.0,92987.0,0.09444]
[1765320415910,0.59654,92988.0,92987.0,0.09444]
[1765320416308,0.64721,92988.0,92987.0,0.09444]
[1765320416506,0.64725,92988.0,92987.0,0.09444]
[1765320420509,0.14641,92988.0,92987.0,0.09444]
[1765320420710,0.64725,92988.0,92987.0,0.09444]
[1765320428321,0.67110158,92988.0,92987.0,0.09444]
[1765320431423,0.57438158,92988.0,92987.0,0.1051944]
[1765320432317,0.64808158,92988.0,92987.0,0.1051944]
[1765320432707,0.64808158,92988.0,92987.0,0.09444]
[1765320433510,0.69246158,92988.0,92987.0,0.09444]
[1765320434814,0.19024,92982.0,92981.0,0.50942]
[1765320435016,0.21409158,92982.0,92981.0,0.50942]
[1765320436224,0.21409158,92982.0,92981.0,0.51142]
[1765320439626,0.21409158,92982.0,92981.0,0.43457]
[1765320439818,0.21409158,92982.0,92981.0,0.51142]
[1765320440012,0.21409158,92982.0,92981.0,0.43457]
[1765320440417,0.21409158,92982.0,92981.0,0.51142]
[1765320444517,0.21409158,92982.0,92981.0,0.3628]
[1765320444931,0.21409158,92982.0,92981.0,0.43166]
[1765320445128,0.21409158,92982.0,92981.0,0.49535]
[1765320448722,0.09601158,92982.0,92981.0,0.49535]
[1765320449032,0.16230158,92982.0,92981.0,0.49535]
[1765320449235,0.09601158,92982.0,92981.0,0.49535]
[1765320449434,0.16230158,92982.0,92981.0,0.49535]
[1765320449831,0.66310158,92982.0,92981.0,0.49535]
[1765320450034,0.66310158,92982.0,92981.0,0.5061051]
[1765320452036,0.70088158,92982.0,92981.0,0.49535]
[1765320455635,0.59681158,92982.0,92981.0,0.49535]
[1765320455832,0.66310158,92982.0,92981.0,0.49535]
[1765320460339,0.66306158,92982.0,92981.0,0.49535]
[1765320460535,0.02385158,92982.0,92981.0,0.49535]
[1765320460840,0.50076,92994.0,92992.0,0.1433038]
[1765320461043,0.0240145,92993.0,92992.0,0.1433038]
[1765320461635,0.3608,92995.0,92994.0,0.13255]
[1765320461636,0.2905845,92995.0,92994.0,0.13255]
[1765320462149,0.2905845,92995.0,92994.0,0.14355536]
[1765320462744,0.2905845,92995.0,92994.0,0.14555536]
[1765320463037,0.2905845,92995.0,92994.0,0.14755536]
[1765320464047,0.2905845,92995.0,92994.0,0.17755536]
[1765320464648,0.2905845,92995.0,92994.0,0.17655536]
[1765320464946,0.2905845,92995.0,92994.0,0.17855536]
[1765320465150,0.2905845,92995.0,92994.0,0.17555536]
[1765320465453,0.2905845,92995.0,92994.0,0.28655536]
[1765320465949,0.2905845,92995.0,92994.0,0.14955536]
[1765320467944,0.2905845,92995.0,92994.0,0.15055536]
[1765320468348,0.2905845,92995.0,92994.0,0.14655536]
[1765320468547,0.2905845,92995.0,92994.0,0.14955536]
[1765320471052,0.2905845,92995.0,92994.0,0.15055536]
[1765320471553,0.2905845,92995.0,92994.0,0.14655536]
[1765320471952,0.2905845,92995.0,92994.0,0.14955536]
[1765320472254,0.2905845,92995.0,92994.0,0.15055536]
[1765320474346,0.3301145,92995.0,92994.0,0.15055536]
[1765320474852,0.3301145,92995.0,92994.0,0.14655536]
[1765320475039,0.3301145,92995.0,92994.0,0.14955536]
[1765320475645,0.3301145,92995.0,92994.0,0.14655536]
[1765320475845,0.3301145,92995.0,92994.0,0.14955536]
[1765320476047,0.3917145,92995.0,92994.0,0.14955536]
[1765320476241,0.3301145,92995.0,92994.0,0.14655536]
[1765320476441,0.3301145,92995.0,92994.0,0.15055536]
[1765320477949,0.3301145,92995.0,92994.0,0.14755536]
[1765320478150,0.4568345,92995.0,92994.0,0.15055536]
[1765320478349,0.4568345,92995.0,92994.0,0.14655536]
[1765320478649,0.4568345,92995.0,92994.0,0.14955536]
[1765320478850,0.3301145,92995.0,92994.0,0.14955536]
[1765320479155,0.3917145,92995.0,92994.0,0.14955536]
[1765320479356,0.4568345,92995.0,92994.0,0.14955536]
[1765320480157,0.3301145,92995.0,92994.0,0.14655536]
[1765320480354,0.3301145,92995.0,92994.0,0.14955536]
[1765320480859,0.4568345,92995.0,92994.0,0.14955536]
[1765320481254,0.4568345,92995.0,92994.0,0.29955536]
[1765320481454,0.4568345,92995.0,92994.0,0.14955536]
[1765320481652,0.4568345,92995.0,92994.0,0.14355536]
[1765320481856,0.4568345,92995.0,92994.0,0.14955536]
[1765320482250,0.4568345,92995.0,92994.0,0.14655536]
[1765320482451,0.4568345,92995.0,92994.0,0.14955536]
[1765320485965,0.4568345,92995.0,92994.0,0.14655536]
[1765320486268,0.4568345,92995.0,92994.0,0.14955536]
[1765320487956,0.4568345,92995.0,92994.0,0.14655536]
[1765320488257,0.4568345,92995.0,92994.0,0.14955536]
[1765320488457,0.3301145,92995.0,92994.0,0.58703818]
[1765320488660,0.3301145,92995.0,92994.0,0.23403818]
[1765320488857,0.3301145,92995.0,92994.0,0.23703818]
[1765320489069,0.3301145,92995.0,92994.0,0.17955536]
[1765320489448,0.3301145,92995.0,92994.0,0.17655536]
[1765320489753,0.3301145,92995.0,92994.0,0.19030886]
[1765320490148,0.4547145,92995.0,92994.0,0.19030886]
[1765320491050,0.3919445,92995.0,92994.0,0.18730886]
[1765320491248,0.3301145,92995.0,92994.0,0.19030886]
[1765320491959,0.3301145,92995.0,92994.0,0.18730886]
[1765320492260,0.2905845,92995.0,92994.0,0.19030886]
[1765320492453,0.3276445,92995.0,92994.0,0.19030886]
[1765320492948,0.2905845,92995.0,92994.0,0.19030886]
[1765320493154,0.09905134,93004.0,93003.0,0.0129125]
[1765320493364,0.03722134,93004.0,93003.0,0.4329125]
[1765320493764,0.00016134,93004.0,93003.0,0.4329125]
[1765320494564,0.00016134,93004.0,93003.0,0.4349125]
[1765320495359,0.00016134,93004.0,93003.0,0.4379125]
[1765320496062,0.00016134,93004.0,93003.0,0.4359125]
[1765320496270,0.00016134,93004.0,93003.0,0.4389125]
[1765320496767,0.00016134,93004.0,93003.0,0.4399125]
[1765320497760,0.00016134,93004.0,93003.0,0.1299125]
[1765320499665,0.00016134,93004.0,93003.0,0.3869125]
[1765320499858,0.00016134,93004.0,93003.0,0.3899125]
[1765320500056,0.12476134,93004.0,93003.0,0.0199125]
[1765320500270,0.12476134,93004.0,93003.0,0.0499125]
[1765320500666,0.06199134,93004.0,93003.0,0.0499125]
[1765320501373,0.12476134,93004.0,93003.0,0.0499125]
[1765320502774,0.00016134,93004.0,93003.0,0.0499125]
[1765320504967,0.00016134,93004.0,93003.0,0.5299125]
[1765320505166,0.00016134,93004.0,93003.0,0.5099125]
[1765320515973,4e-08,93004.0,93003.0,0.5099125]
[1765320519284,0.0010751,93015.0,93014.0,0.0107512]
[1765320519487,0.0010751,93015.0,93014.0,1.0211112]
[1765320519779,0.0010751,93015.0,93014.0,0.5111112]
[1765320520087,0.1645751,93015.0,93014.0,0.5755512]
[1765320520286,0.0010751,93015.0,93014.0,0.5755512]
[1765320520781,0.0010751,93015.0,93014.0,0.6275512]
[1765320521878,0.0010751,93015.0,93014.0,0.6375512]
[1765320522082,0.0010751,93015.0,93014.0,0.6395512]
[1765320522282,0.0514551,93015.0,93014.0,0.6395512]
[1765320523982,0.2149551,93015.0,93014.0,0.6395512]
[1765320524285,0.0514551,93015.0,93014.0,0.6395512]
[1765320524789,0.2149551,93015.0,93014.0,0.6395512]
[1765320525085,0.0514551,93015.0,93014.0,0.6395512]
[1765320525777,0.2149551,93015.0,93014.0,0.5795512]
[1765320526386,0.2149551,93015.0,93014.0,0.0791912]
[1765320526682,0.0010751,93015.0,93014.0,0.5591912]
[1765320526885,0.05048706,93024.0,93023.0,0.0553502]
[1765320527085,0.05048706,93024.0,93023.0,0.5353502]
[1765320527280,0.00010706,93024.0,93023.0,0.5353502]
[1765320527489,0.05038,93032.0,93031.0,0.0526893]
[1765320527682,0.13386,93032.0,93031.0,0.49023997]
[1765320528078,0.13386,93032.0,93031.0,0.4326893]
[1765320528479,0.21388,93032.0,93031.0,0.4326893]
[1765320528701,0.21588,93032.0,93031.0,0.4326893]
[1765320529288,0.21388,93032.0,93031.0,0.4366893]
[1765320530186,0.21488,93032.0,93031.0,0.4366893]
[1765320530983,0.21388,93032.0,93031.0,0.4396893]
[1765320533198,0.21388,93032.0,93031.0,0.0596893]
[1765320533384,0.21388,93032.0,93031.0,0.10778835]
[1765320534095,0.21388,93032.0,93031.0,0.0502493]
[1765320534292,0.21388,93032.0,93031.0,0.0472493]
[1765320534499,0.21388,93032.0,93031.0,0.0502493]
[1765320534500,0.05038,93032.0,93031.0,0.0502493]
[1765320534797,0.24247,93032.0,93031.0,0.0482493]
[1765320535198,0.24247,93032.0,93031.0,0.0492493]
[1765320535495,0.24247,93032.0,93031.0,0.10678835]
[1765320535692,0.24247,93032.0,93031.0,0.10378835]
[1765320535896,0.24247,93032.0,93031.0,0.10678835]
[1765320536162,0.24247,93032.0,93031.0,0.10578835]
[1765320536798,0.24247,93032.0,93031.0,0.46678835]
[1765320537202,0.24247,93032.0,93031.0,0.46378835]
[1765320537398,0.24247,93032.0,93031.0,0.46678835]
[1765320537599,0.24247,93032.0,93031.0,0.4092493]
[1765320537800,0.24247,93032.0,93031.0,0.17379073]
[1765320538001,0.24247,93032.0,93031.0,0.17679073]
[1765320538397,0.00107481,93040.0,93039.0,0.0186083]
[1765320538592,0.00107481,93040.0,93039.0,0.9888083]
[1765320539593,0.06193481,93040.0,93039.0,0.9888083]
[1765320539797,0.06193481,93040.0,93039.0,0.9908083]
[1765320539997,0.00107481,93040.0,93039.0,0.9908083]
[1765320540505,0.06193481,93040.0,93039.0,0.9908083]
[1765320540701,0.06193481,93040.0,93039.0,0.9938083]
[1765320541803,0.06193481,93040.0,93039.0,0.7338083]
[1765320541804,0.25402481,93040.0,93039.0,0.7338083]
[1765320541993,0.202839,93033.0,93032.0,0.23018061]
[1765320542401,0.202839,93033.0,93032.0,0.08140061]
[1765320542600,0.19209,93031.0,93030.0,0.00016125]
[1765320543107,0.19209,93020.0,93019.0,0.19224]
[1765320543405,0.19209,93020.0,93019.0,0.0107507]
[1765320543714,0.0716101,93024.0,93017.0,0.05746362]
[1765320543715,0.25295,93018.0,93017.0,0.05746362]
[1765320543906,0.2637009,93018.0,93016.0,0.05746362]
[1765320544103,0.19209,93017.0,93016.0,0.05746362]
[1765320544302,0.19209,93016.0,93015.0,0.010751]
[1765320544607,0.06086,93012.0,93011.0,0.0107515]
[1765320544810,0.25295,93012.0,93011.0,0.0107515]
[1765320545199,0.19209,93011.0,93010.0,0.0575265]
[1765320545398,0.19635,93009.0,93008.0,0.01091305]
[1765320545800,0.19635,93009.0,93008.0,0.21735305]
[1765320546001,0.19635,93009.0,93008.0,0.01091305]
[1765320546913,0.19635,93009.0,93008.0,0.01291305]
[1765320547508,0.19635,93009.0,93008.0,0.01491305]
[1765320547811,0.26773,92982.0,92971.0,0.01086368]
[1765320548002,0.26773,92982.0,92971.0,0.00010758]
[1765320548203,0.26773,92982.0,92980.0,0.01082141]
[1765320548497,0.26773,92982.0,92977.0,0.01086774]
[1765320548701,0.26773,92982.0,92972.0,0.00016125]
[1765320548907,0.26773,92982.0,92973.0,0.010756]
[1765320549110,0.26773,92982.0,92972.0,0.01066695]
[1765320549304,0.26773,92982.0,92972.0,0.02142295]
[1765320549515,0.26773,92982.0,92972.0,0.00016125]
[1765320549703,0.26773,92982.0,92981.0,0.3628]
[1765320549899,0.26773,92982.0,92981.0,0.3648]
[1765320550405,0.26773,92982.0,92981.0,0.20034]
[1765320554502,0.26773,92982.0,92981.0,0.00986]
[1765320554898,0.66773,92982.0,92981.0,0.00986]
[1765320555316,0.205446,92973.0,92972.0,0.00016125]
[1765320556616,0.205446,92973.0,92972.0,0.00116125]
[1765320557517,0.205446,92973.0,92972.0,0.00316125]
[1765320569316,0.205446,92973.0,92972.0,0.26932125]
[1765320569317,0.226046,92973.0,92972.0,0.26932125]
[1765320569520,0.1310857,92976.0,92975.0,0.3599955]
[1765320569910,0.1310857,92976.0,92975.0,0.34924]
[1765320570110,0.1075563,92976.0,92975.0,0.34924]
[1765320570918,0.118312,92976.0,92975.0,0.35024]
[1765320571726,0.119312,92976.0,92975.0,0.35024]
[1765320572129,0.0117557,92976.0,92975.0,0.35024]
[1765320573423,0.31924,92996.0,92975.0,0.35024]
[1765320573424,0.0107519,93009.0,92990.0,0.26616]
[1765320573626,0.23698125,92991.0,92990.0,0.26616]
[1765320573829,0.24773515,92991.0,92990.0,0.26616]
[1765320574224,0.01091515,92991.0,92990.0,0.26616]
[1765320574422,0.25029515,92991.0,92990.0,0.26616]
[1765320574622,0.25029515,92991.0,92990.0,0.26716]
[1765320575123,0.25029515,92991.0,92990.0,0.001]
[1765320575322,0.25129515,92991.0,92990.0,0.001]
[1765320575721,0.25129515,92991.0,92990.0,0.13922]
[1765320576028,0.25129515,92991.0,92990.0,0.26716]
[1765320577223,0.25129515,92991.0,92990.0,0.26616]
[1765320577423,0.27519742,92991.0,92990.0,0.26716]
[1765320578323,0.25129515,92991.0,92990.0,0.26716]
[1765320580025,0.25129515,92991.0,92990.0,0.001]
[1765320580230,0.25129515,92991.0,92990.0,0.26716]
[1765320583126,0.25089515,92991.0,92990.0,0.26716]
[1765320592564,0.25089515,92991.0,92990.0,0.001]
[1765320593050,0.25089515,92991.0,92990.0,0.13922]
[1765320593246,0.25089515,92991.0,92990.0,0.25763]
[1765320597466,0.27482107,92991.0,92990.0,0.25763]
[1765320597765,0.27482107,92991.0,92990.0,0.268384]
[1765320600865,0.02492592,92991.0,92990.0,0.268384]
[1765320601064,0.03567982,92991.0,92990.0,0.268384]
[1765320601670,0.19135982,92991.0,92990.0,0.268384]
[1765320602077,0.11425982,92991.0,92990.0,0.268384]
[1765320602567,0.18988982,92991.0,92990.0,0.268384]
[1765320603668,0.11425982,92991.0,92990.0,0.268384]
[1765320603969,0.18842982,92991.0,92990.0,0.268384]
[1765320604267,0.18842982,92991.0,92990.0,0.25763]
[1765320609177,0.18842982,92991.0,92990.0,0.268384]
[1765320609474,0.18842982,92991.0,92990.0,0.25763]
[1765320610478,0.18842982,92991.0,92990.0,0.001]
[1765320612375,0.1336156,92976.0,92975.0,0.31196]
[1765320612766,0.1577441,92976.0,92975.0,0.31196]
[1765320613878,0.1587441,92976.0,92975.0,0.31296]
[1765320614172,0.1587441,92976.0,92975.0,0.08408]
[1765320614373,0.1587441,92976.0,92975.0,0.001]
[1765320621370,0.1587441,92976.0,92972.0,5e-08]
[1765320621371,0.110856,92973.0,92972.0,5e-08]
[1765320621675,0.2356479,92956.0,92955.0,0.29736]
[1765320621881,0.2356485,92951.0,92950.0,0.29736]
[1765320622684,0.23576731,92951.0,92950.0,0.29736]
[1765320623273,0.23576731,92951.0,92950.0,0.22888]
[1765320623477,0.23976731,92951.0,92950.0,0.22888]
[1765320624280,0.24176731,92951.0,92950.0,0.22888]
[1765320626084,0.23776731,92951.0,92950.0,0.22888]
[1765320626285,0.24176731,92951.0,92950.0,0.22888]
[1765320626586,0.24176731,92951.0,92950.0,0.11161]
[1765320626885,0.24176731,92951.0,92950.0,0.25059]
[1765320627382,0.23976731,92951.0,92950.0,0.25059]
[1765320627585,0.24176731,92951.0,92950.0,0.25059]
[1765320629189,0.24176731,92951.0,92950.0,0.33044]
[1765320630089,0.24176731,92951.0,92950.0,0.25059]
[1765320630383,0.23776731,92951.0,92950.0,0.25059]
[1765320630583,0.24176731,92951.0,92950.0,0.25059]
[1765320631977,0.23576731,92951.0,92950.0,0.33044]
[1765320632176,0.24176731,92951.0,92950.0,0.33044]
[1765320632582,0.23776731,92951.0,92950.0,0.33044]
[1765320632774,0.24176731,92951.0,92950.0,0.33044]
[1765320633177,0.23776731,92951.0,92950.0,0.33044]
[1765320633381,0.24176731,92951.0,92950.0,0.33044]
[1765320633586,0.23976731,92951.0,92950.0,0.33044]
[1765320633784,0.24176731,92951.0,92950.0,0.33044]
[1765320634686,0.23776731,92951.0,92950.0,0.33044]
[1765320634992,0.24176731,92951.0,92950.0,0.33044]
[1765320635186,0.23976731,92951.0,92950.0,0.33044]
[1765320635380,0.01687731,92951.0,92950.0,0.33044]
[1765320636381,0.14962731,92951.0,92950.0,0.33044]
[1765320636585,0.14862731,92951.0,92950.0,0.33044]
[1765320636791,0.01587731,92951.0,92950.0,0.33044]
[1765320636993,0.14862731,92951.0,92950.0,0.33044]
[1765320637383,0.28683731,92951.0,92950.0,0.33044]
[1765320637586,0.14862731,92951.0,92950.0,0.33044]
[1765320637889,0.14662731,92951.0,92950.0,0.33044]
[1765320638090,0.14862731,92951.0,92950.0,0.33044]
[1765320639490,0.01587731,92951.0,92950.0,0.33044]
[1765320645695,0.00016134,92960.0,92959.0,0.2909876]
[1765320645999,0.0107566,92968.0,92967.0,0.28023]
[1765320646595,0.1435066,92968.0,92967.0,0.2909867]
[1765320646789,0.1435066,92968.0,92967.0,0.28023]
[1765320646998,0.2817166,92968.0,92967.0,0.2909867]
[1765320647597,0.2877166,92968.0,92967.0,0.2909867]
[1765320647801,0.0167566,92968.0,92967.0,0.2909867]
[1765320648593,0.0207566,92968.0,92967.0,0.2909867]
[1765320651703,0.01,92968.0,92967.0,0.2909867]
[1765320651900,0.0207566,92968.0,92967.0,0.2909867]
[1765320652102,0.01,92968.0,92967.0,0.2909867]
[1765320653200,0.0089999,92968.0,92967.0,0.2909867]
[1765320653605,0.26418665,92977.0,92976.0,0.2633]
[1765320653903,0.01091665,92977.0,92976.0,0.2633]
[1765320654308,0.00016115,92977.0,92976.0,0.2633]
[1765320654502,0.00107539,92990.0,92985.0,0.0905746]
[1765320654706,0.01182939,92990.0,92989.0,0.24315]
[1765320656907,0.01182939,92990.0,92989.0,0.24415]
[1765320657308,0.00107539,92990.0,92989.0,0.24415]
[1765320657899,0.00107539,92990.0,92989.0,0.24515]
[1765320661705,0.08818,92991.0,92989.0,0.24515]
[1765320661706,0.010753,92999.0,92998.0,0.2539031]
[1765320662601,0.131533,92999.0,92998.0,0.2539031]
[1765320662806,0.252053,92999.0,92998.0,0.2539031]
[1765320663108,0.010753,92999.0,92998.0,0.2539031]
[1765320663303,0.010753,92999.0,92998.0,0.2549031]
[1765320664006,0.011753,92999.0,92998.0,0.2549031]
[1765320666697,0.001,92999.0,92998.0,0.2549031]
[1765320667816,8.209e-05,92999.0,92998.0,0.2549031]
[1765320668610,0.01624,93007.0,93006.0,0.2655622]
[1765320669014,0.010752,93008.0,93007.0,0.25481]
[1765320669717,0.0107516,93011.0,93010.0,0.32903]
[1765320670416,0.0118263,93015.0,93014.0,0.25481]
[1765320671204,0.0010751,93015.0,93014.0,0.25481]
[1765320671514,0.2756998,93026.0,93025.0,0.19234]
[1765320671714,0.2756998,93026.0,93025.0,0.31598]
[1765320671918,0.2756998,93026.0,93025.0,0.13117]
[1765320671919,0.30002572,93026.0,93025.0,0.13117]
[1765320672120,0.2757009,93017.0,93016.0,0.25497125]
[1765320673212,0.2757009,93017.0,93016.0,0.13133125]
[1765320674017,0.2767009,93017.0,93016.0,0.25497125]
[1765320676113,0.2757009,93017.0,93016.0,0.25497125]
[1765320677026,0.2767009,93017.0,93016.0,0.25497125]
[1765320677318,0.30917822,93030.0,93016.0,0.25497125]
[1765320677319,0.0107491,93033.0,93032.0,0.010749]
[1765320677509,0.03509486,93033.0,93032.0,0.265559]
[1765320677822,0.0107491,93033.0,93032.0,0.265559]
[1765320678125,0.2756991,93033.0,93032.0,0.265559]
[1765320679228,0.2786991,93033.0,93032.0,0.265559]
[1765320679524,0.1475691,93033.0,93032.0,0.265559]
[1765320679724,0.2786991,93033.0,93032.0,0.265559]
[1765320681612,0.003,93033.0,93032.0,0.265559]
[1765320689316,0.23593,93033.0,93032.0,0.265559]
[1765320689630,0.27104589,93033.0,93032.0,0.25481]
[1765320690433,0.1278998,93026.0,93025.0,0.1881199]
[1765320690618,0.0107509,93018.0,93016.0,0.00016125]
[1765320690819,0.2572178,93017.0,93016.0,0.00016125]
[1765320691329,0.243682,93007.0,93006.0,0.12193]
[1765320691522,0.0107527,93001.0,93000.0,0.24978]
[1765320691722,0.2436827,93001.0,93000.0,0.24978]
[1765320692043,0.26797767,93001.0,93000.0,0.2605329]
[1765320692225,0.26797767,93001.0,93000.0,0.1326829]
[1765320692533,0.26797767,93001.0,93000.0,0.24978]
[1765320692935,0.26797767,93001.0,93000.0,0.25478]
[1765320693235,0.26797767,93001.0,93000.0,0.12693]
[1765320693542,0.26797767,93001.0,93000.0,0.002]
[1765320694233,0.26797767,93001.0,93000.0,0.005]
[1765320694833,0.26797767,93001.0,93000.0,0.002]
[1765320695035,0.23293,93000.0,92999.0,0.12193]
[1765320695226,0.25722497,93000.0,92999.0,0.12193]
[1765320696036,0.23293,92997.0,92996.0,0.2605333]
[1765320696434,0.23293,92997.0,92996.0,0.24978]
[1765320697225,0.2436838,92992.0,92991.0,0.24994125]
[1765320697837,0.26797701,92992.0,92991.0,0.00016125]
[1765320699148,0.26797701,92992.0,92991.0,0.00116125]
[1765320699435,0.26797701,92992.0,92991.0,0.00016125]
[1765320699635,0.26797701,92992.0,92991.0,0.00116125]
[1765320699836,0.26797701,92992.0,92991.0,0.25094125]
[1765320700039,0.26797701,92992.0,92991.0,0.00116125]
[1765320703032,0.26797701,92992.0,92991.0,0.00016125]
[1765320703237,0.27097701,92992.0,92991.0,0.00016125]
[1765320704745,0.26897701,92992.0,92991.0,0.00016125]
[1765320704951,0.27097701,92992.0,92991.0,0.00016125]
[1765320705134,0.2436856,92976.0,92975.0,0.24987779]
[1765320706543,0.2436856,92976.0,92975.0,0.25187779]
[1765320707246,0.2436856,92976.0,92975.0,0.25287779]
[1765320712944,0.2436856,92976.0,92975.0,0.31246779]
[1765320712945,0.0107556,92976.0,92975.0,0.31246779]
[1765320713248,0.2288556,92976.0,92975.0,0.31246779]
[1765320714151,0.2288556,92976.0,92975.0,0.25287779]
[1765320720252,0.25334211,92976.0,92975.0,0.00309779]
[1765320720654,0.25334211,92976.0,92975.0,0.11776779]
[1765320721044,0.25334211,92976.0,92975.0,0.00309779]
[1765320721852,0.2288567,92967.0,92966.0,5e-08]
[1765320722046,0.2288591,92946.0,92945.0,0.29811]
[1765320722848,0.22895689,92946.0,92945.0,0.29811]
[1765320724456,0.22895689,92946.0,92945.0,0.30011]
[1765320724858,0.22895689,92946.0,92945.0,0.30111]
[1765320729356,0.22895689,92946.0,92945.0,0.23239]
[1765320729551,0.25345538,92946.0,92945.0,0.23239]
[1765320733247,0.25345538,92946.0,92945.0,0.003]
[1765320733560,0.25345538,92946.0,92945.0,0.21627]
[1765320738158,0.25345538,92946.0,92945.0,0.003]
[1765320738565,0.25345538,92946.0,92945.0,0.21627]
[1765320738954,0.25345538,92946.0,92945.0,0.10897]
[1765320739166,0.25345538,92946.0,92945.0,0.003]
[1765320740360,0.2176101,92937.0,92936.0,0.21343134]
[1765320740665,0.2421035,92937.0,92936.0,0.21343134]
[1765320741666,0.2421035,92937.0,92936.0,0.21843134]
[1765320742261,0.2421035,92937.0,92936.0,0.00516134]
[1765320743468,0.24143,92935.0,92934.0,0.00021499]
[1765320743765,0.212232,92921.0,92920.0,0.25899]
[1765320743959,0.21232769,92921.0,92920.0,0.19745]
[1765320744268,0.23682009,92921.0,92920.0,0.19745]
[1765320744465,0.21232769,92921.0,92920.0,0.19745]
[1765320744865,0.23682007,92921.0,92920.0,0.19745]
[1765320745269,0.21232769,92921.0,92920.0,0.19745]
[1765320745466,0.23681694,92921.0,92920.0,0.19745]
[1765320745667,0.2122326,92916.0,92915.0,0.19852626]
[1765320746169,0.23671316,92916.0,92915.0,0.19852626]
[1765320746559,0.23671316,92916.0,92915.0,0.00107626]
[1765320746759,0.23671316,92916.0,92915.0,0.00407626]
[1765320746959,0.23671316,92916.0,92915.0,0.00607626]
[1765320747160,0.23671316,92916.0,92915.0,0.00307626]
[1765320747360,0.23671316,92916.0,92915.0,0.00407626]
[1765320747561,0.212233,92912.0,92911.0,0.00016143]
[1765320747861,0.212234,92904.0,92903.0,0.00010121]
[1765320748063,0.212234,92904.0,92890.0,0.06182655]
[1765320748064,0.2122355,92891.0,92890.0,0.25927655]
[1765320748266,0.2122355,92891.0,92890.0,0.19852655]
[1765320748565,0.2122355,92891.0,92890.0,0.10355655]
[1765320748763,0.2122355,92891.0,92890.0,0.19852655]
[1765320749661,0.2122355,92891.0,92890.0,0.19952655]
[1765320751767,0.09631,92891.0,92890.0,0.21029215]
[1765320751967,0.00016143,92900.0,92899.0,0.19745]
[1765320752165,9.779e-05,92904.0,92903.0,0.2082141]
[1765320753373,0.00109779,92904.0,92903.0,0.2082141]
[1765320754074,9.779e-05,92904.0,92903.0,0.2082141]
[1765320754459,0.00016143,92913.0,92912.0,0.208213]
[1765320754875,0.2122301,92938.0,92937.0,0.19745]
[1765320755066,0.23683556,92938.0,92937.0,0.19745]
[1765320755564,0.23693677,92938.0,92937.0,0.19745]
[1765320756274,0.24293677,92938.0,92937.0,0.19745]
[1765320759778,0.24093677,92938.0,92937.0,0.19745]
[1765320759977,0.24293677,92938.0,92937.0,0.19745]
[1765320760178,0.24193677,92938.0,92937.0,0.19745]
[1765320762274,0.23893677,92938.0,92937.0,0.19745]
[1765320762574,0.24193677,92938.0,92937.0,0.19745]
[1765320762965,0.23993677,92938.0,92937.0,0.19745]
[1765320763170,0.24093677,92938.0,92937.0,0.19745]
[1765320765574,0.23793677,92938.0,92937.0,0.19745]
[1765320765775,0.24093677,92938.0,92937.0,0.19745]
[1765320767883,0.23793677,92938.0,92937.0,0.19745]
[1765320768079,0.24093677,92938.0,92937.0,0.19745]
[1765320768983,0.23793677,92938.0,92937.0,0.19745]
[1765320769280,0.24093677,92938.0,92937.0,0.19745]
[1765320769587,0.23793677,92938.0,92937.0,0.19745]
[1765320769778,0.24093677,92938.0,92937.0,0.19745]
[1765320780484,0.23993677,92938.0,92937.0,0.19745]
[1765320780691,0.24093677,92938.0,92937.0,0.19745]
[1765320781080,0.23793677,92938.0,92937.0,0.19745]
[1765320781279,0.24093677,92938.0,92937.0,0.19745]
[1765320781482,0.23993677,92938.0,92937.0,0.19745]
[1765320781682,0.23793677,92938.0,92937.0,0.19745]
[1765320781983,0.24093677,92938.0,92937.0,0.19745]
[1765320784091,0.23993677,92938.0,92937.0,0.19745]
[1765320784302,0.24093677,92938.0,92937.0,0.19745]
[1765320794301,0.13577677,92938.0,92937.0,0.19745]
[1765320794600,0.22691677,92938.0,92937.0,0.19745]
[1765320795390,0.22591677,92938.0,92937.0,0.2082101]
[1765320795700,0.22691677,92938.0,92937.0,0.2082101]
[1765320795902,0.22691677,92938.0,92937.0,0.19745]
[1765320796799,0.22391677,92938.0,92937.0,0.19745]
[1765320796998,0.22691677,92938.0,92937.0,0.19745]
[1765320798603,0.22391677,92938.0,92937.0,0.19745]
[1765320798791,0.22691677,92938.0,92937.0,0.19745]
[1765320799287,0.22691677,92938.0,92928.0,0.06091143]
[1765320799288,0.1853211,92929.0,92928.0,0.24133143]
[1765320799493,0.20992656,92929.0,92928.0,0.24133143]
[1765320799692,0.20992656,92929.0,92928.0,0.18058143]
[1765320801307,0.21092656,92929.0,92928.0,0.19134263]